Cogmind - Beta 9.2 @@@ ROGUE MODE // 2019.11.14 @ 22:27:53 Player: Finestep Result: Destroyed by D-53 Grenadier with Mini Grenade Launcher Performance ------------- Evolutions (0) 0 Regions Visited (2) 400 Robots Destroyed (21) 105 Value Destroyed (347) 347 Prototype IDs (0) 0 Alien Tech Used (0) 0 Bonus (0) 0 TOTAL SCORE: 852 Bonus ------- None Cogmind --------- Core Integrity 0/250 Matter 295/300 Energy 58/100 System Corruption 5% Temperature Cool (0) Movement Core (550) Ox10 Location -10/Mines Parts ------- > --- POWER (1) -------- (None) > --- PROPULSION (2) --- (None) > --- UTILITY (2) ------ Large Storage Unit Large Storage Unit > --- WEAPON (2) ------- (None) > --- INVENTORY (16) --- Light Ion Engine Light Ion Engine Small Storage Unit Medium Storage Unit Large Storage Unit Large Matter Pod (81) Grenade Launcher Stasis Trap (100%) Stasis Trap (100%) Peak State ------------ > --- POWER ------------ Ion Engine > --- PROPULSION ------- Light Treads Compact Wheel > --- UTILITY ---------- Large Storage Unit Large Storage Unit > --- WEAPON ----------- Beam Cannon Assault Rifle > --- INVENTORY -------- Light Ion Engine Light Ion Engine Light Treads Small Storage Unit Medium Storage Unit Large Storage Unit Large Matter Pod Medium Laser Grenade Launcher Mining Laser [Rating: 8] Favorites ----------- Power Ion Engine Engine Ion Engine Propulsion Compact Wheel Treads Light Treads Wheel Compact Wheel Utility Small Storage Unit Storage Small Storage Unit Weapon Assault Rifle Energy Gun Small Laser Energy Cannon Beam Cannon Ballistic Gun Assault Rifle Special Weapon Mining Laser Build | -11 -10 -10 ------- Run | Scr Mat Min Slots Evolved . | . . . Power . | . . . Propulsion . | . . . Utility . | . . . Weapon . | . . . Parts Attached 15 | 6 5 4 Power 1 | 1 . . Engine 1 | 1 . . Core . | . . . Reactor . | . . . Propulsion 6 | 2 2 2 Treads 4 | . 2 2 Leg . | . . . Wheel 2 | 2 . . Hover . | . . . Flight . | . . . Utility 3 | 1 2 . Device . | . . . Storage 3 | 1 2 . Processor . | . . . Hackware . | . . . Protection . | . . . Artifact . | . . . Weapon 5 | 2 1 2 Energy Gun 2 | 1 . 1 Energy Cannon 1 | . 1 . Ballistic Gun 1 | 1 . . Ballistic Cannon . | . . . Launcher . | . . . Special Weapon 1 | . . 1 Impact Weapon . | . . . Slashing Weapon . | . . . Piercing Weapon . | . . . Special Melee Weapon . | . . . Unidentified Prototypes . | . . . Parts Lost 9 | . 1 8 Power 1 | . . 1 Propulsion 3 | . . 3 Utility . | . . . Weapon 5 | . 1 4 Highest Loss Streak 8 | . 1 8 Average Slot Usage (%) 85 | . 85 80 Engine 13 | . 14 9 Treads 13 | . 13 15 Wheel 14 | . 14 7 Storage 16 | . 15 28 Energy Gun 2 | . 2 3 Energy Cannon 10 | . 11 6 Ballistic Gun 13 | . 14 9 Naked Turns . | . . . Heaviest Build 42 | 12 42 42 Greatest Support 40 | 26 26 40 Greatest Overweight (x) 10 | . 2 10 Average Overweight (x) . | . . 2 Largest Inventory Capacity 16 | 6 16 16 Average Capacity 7 | 5 6 16 Most Carried 12 | 5 10 12 Average Carried 6 | 3 5 10 Final Capacity 16 | 6 16 16 Final Carried 10 | 5 10 9 Class Distribution -------------------- 100% | Mutant Dominant Class ---------------- Mutant | -10/Materials Mutant | -10/Mines Resources | -11 -10 -10 ----------- Run | Scr Mat Min Matter Collected 567 | 281 259 27 Remotely . | . . . Salvage Created 943 | 149 767 27 Parts 42 | 7 35 . Haulers Intercepted 1 | . 1 . Recyclers Shooed 4 | 1 3 . Parts Field Recycled . | . . . Retrieved Matter . | . . . Parts Self-Destructed . | . . . Prevented . | . . . Kills | -11 -10 -10 ------- Run | Scr Mat Min Combat Hostiles Destroyed 9 | . 7 2 Guns 5 | . 3 2 Cannons 4 | . 4 . Classes Destroyed 8 | 2 5 1 Worker 1 | . 1 . Builder 2 | . 2 . Tunneler 2 | 2 . . Hauler 1 | . 1 . Recycler 5 | 1 4 . Watcher 1 | . 1 . Grunt 7 | . 7 . Assembled 2 | . . 2 Best Kill Streak 5 | 3 5 2 Combat Bots Only 2 | . 2 2 Max Kills in Single Turn 2 | 2 1 1 Gunslinging . | . . . Exploded . | . . . Melee . | . . . Uniques/NPCs Destroyed . | . . . Combat | -11 -10 -10 -------- Run | Scr Mat Min Damage Taken 1056 | . 472 584 Core 260 | . 81 179 Absorbed by Shields . | . . . Core Remaining (%) 100 | 100 . . Volleys Fired 76 | 7 59 10 Largest 2 | 2 2 2 Hottest 100 | 60 80 100 Shots Fired 137 | 14 109 14 Gun 87 | 14 62 11 Cannon 49 | . 47 2 Launcher . | . . . Special 1 | . . 1 Kinetic 62 | 7 51 4 Thermal 75 | 7 58 10 Explosive . | . . . Electromagnetic . | . . . Robot Hit Streak 11 | 2 11 5 Robot Miss Streak 3 | 3 3 1 Penetration Max . | . . . Secondary Targets . | . . . Shots Hit Robots 82 | 6 65 11 Core Hits 32 | 4 23 5 Critical Hits . | . . . Critical Kills . | . . . Critical Parts Destroyed . | . . . Melee Attacks . | . . . Impact . | . . . Slashing . | . . . Piercing . | . . . Sneak Attacks . | . . . Combat Hostiles . | . . . Follow-up Attacks . | . . . Damage Inflicted 1268 | 95 1011 162 Guns 666 | 95 444 127 Cannons 602 | . 567 35 Explosions . | . . . Melee . | . . . Ramming . | . . . Kinetic 472 | 54 366 52 Thermal 796 | 41 645 110 Explosive . | . . . Electromagnetic . | . . . Impact . | . . . Slashing . | . . . Piercing . | . . . Highest Corruption 5 | . . 5 Average Corruption 4 | . . 4 Corruption Purged . | . . . Effects 3 | . . 3 Energy Discharges 1 | . . 1 Parts Rejected 1 | . . 1 Targeting Errors 1 | . . 1 Overload Shots . | . . . Overflow Damage . | . . . Projectiles . | . . . Explosions . | . . . Melee . | . . . Knockbacks . | . . . Impact . | . . . Kinetic . | . . . Secondary . | . . . Self-Inflicted Damage . | . . . Shots . | . . . Rammed . | . . . Targets Rammed . | . . . Kicked . | . . . Crushed . | . . . Highest Temperature 303 | . 303 18 Average Temperature 112 | . 118 11 Received Heat Transfer 264 | . 264 . Effects 2 | . 2 . Energy Bleed 1 | . 1 . Interference 1 | . 1 . Siege Activations . | . . . Robots Corrupted . | . . . Combat Hostiles . | . . . Parts Fried . | . . . Impact Corruptions . | . . . Robots Melted . | . . . Combat Hostiles . | . . . Parts Melted . | . . . Heat Transferred 1755 | 100 1359 296 Parts Sabotaged . | . . . Parts Stolen . | . . . Parts Stripped . | . . . Power Chain Reactions . | . . . Missiles Intercepted . | . . . Alert | -11 -10 -10 ------- Run | Scr Mat Min Peak Influence 246 | 15 246 47 Average Influence 111 | 4 136 29 Maximum Alert Level 1 | . 1 . Low Security (%) 78 | 100 73 100 Level 1 21 | . 26 . Level 2 . | . . . Level 3 . | . . . Level 4 . | . . . Level 5 . | . . . High Security . | . . . Max Security . | . . . Squads Dispatched 3 | . 3 . Investigation 3 | . 3 . Extermination . | . . . Reinforcement . | . . . Assault . | . . . Garrison . | . . . Intercept . | . . . Construction Impeded . | . . . Haulers Reinforced . | . . . Stealth | -11 -10 -10 --------- Run | Scr Mat Min Distress Signals . | . . . Communications Jammed . | . . . Distress Signals . | . . . Times Spotted 21 | . 11 10 Peak Tracking Total 12 | . 3 12 Tactical Retreats 1 | . . 1 Traps | -11 -10 -10 ------- Run | Scr Mat Min Traps Triggered 1 | . 1 . Indirectly . | . . . Trap Hack Attempts . | . . . Triggered . | . . . Disarmed . | . . . Reprogrammed . | . . . Reused . | . . . Traps Extracted . | . . . Installed . | . . . Triggered . | . . . Machines | -11 -10 -10 ---------- Run | Scr Mat Min Machines Disabled 1 | . 1 . Max in Single Turn 1 | . 1 . Machines Sabotaged . | . . . Garrisons Compromised . | . . . Overloaded Fab Kills . | . . . Fab Network Shutdowns . | . . . Hacking | -11 -10 -10 --------- Run | Scr Mat Min Machines Accessed 4 | . 4 . Terminals 3 | . 3 . Fabricators . | . . . Repair Stations . | . . . Recycling Units 1 | . 1 . Scanalyzers . | . . . Garrison Access . | . . . Total Hacks 10 | . 10 . Successful 4 | . 4 . Failed 6 | . 6 . Catastrophic 1 | . 1 . Database Lockouts . | . . . Manual 1 | . 1 . Terminals 8 | . 8 . Fabricators . | . . . Repair Stations . | . . . Recycling Units 2 | . 2 . Scanalyzers . | . . . Garrison Access . | . . . Terminal Hacks 3 | . 3 . Alert Level 1 | . 1 . Zone Layout 2 | . 2 . Fabricator Hacks . | . . . Repair Station Hacks . | . . . Recycling Unit Hacks . | . . . Scanalyzer . | . . . Garrison Access Hacks . | . . . Unauthorized Hacks 2 | . 2 . Terminals . | . . . Fabricators . | . . . Repair Stations . | . . . Recycling Units 1 | . 1 . Tunnel 1 | . 1 . Scanalyzers . | . . . Garrison Access . | . . . Data Cores Recovered . | . . . Used . | . . . Hacking Detections 4 | . 4 . Full Trace Events 1 | . 1 . Feedback Events . | . . . Feedback Blocked . | . . . Robot Schematics Acquired . | . . . Robots Built . | . . . Matter . | . . . Time . | . . . Total Robot Build Rating . | . . . Part Schematics Acquired . | . . . Parts Built . | . . . Matter . | . . . Time . | . . . Total Part Build Rating . | . . . Parts Repaired . | . . . Time . | . . . Parts Recycled . | . . . Recycled Matter . | . . . Retrieved Matter . | . . . Retrieved Components . | . . . Parts Scanalyzed . | . . . Part Schematics Acquired . | . . . Parts Damaged . | . . . Bothacking | -11 -10 -10 ------------ Run | Scr Mat Min Used RIF Installer . | . . . Robots Hacked . | . . . Non-combat . | . . . Combat . | . . . Robot Hacks Applied . | . . . Relay Couplers Released . | . . . Robots Rewired . | . . . Allies Hacked . | . . . Hacks Repelled . | . . . Allies | -11 -10 -10 -------- Run | Scr Mat Min Total Allies . | . . . Largest Group . | . . . Highest-Rated Group . | . . . Highest-Rated Ally . | . . . Total Orders . | . . . Ally Attacks . | . . . Total Damage . | . . . Kills . | . . . Allies Corrupted . | . . . Allies Melted . | . . . Intel | -11 -10 -10 ------- Run | Scr Mat Min Robot Analysis Total . | . . . Derelict Logs Recovered . | . . . Drone Launches . | . . . Drone Recoveries . | . . . Exploration | -11 -10 -10 ------------- Run | Scr Mat Min Turns Passed 794 | 80 627 87 Spaces Moved 442 | 51 352 39 Core 2 | 1 . 1 Treads 103 | . 93 10 Legs . | . . . Wheels 337 | 50 259 28 Hover . | . . . Flight . | . . . Fastest Speed 50 | 50 90 120 Average Speed 116 | 89 116 147 Slowest Speed 550 | 100 160 550 Overloaded Moves . | . . . Propulsion Burnouts . | . . . Robots Hopped . | . . . Cave-ins Triggered . | . . . Exploration Rate (%) 24 | 3 50 20 Regions Visited 2 Branch Regions 1 Pre-discovered Areas 1 | . 1 . Known Exits Taken . | . . . Unknown Exits Taken 2 | 1 1 . Scrap Searched . | . . . Spaces Dug . | . . . Terrain Destroyed . | . . . Melee . | . . . Projectile . | . . . AOE . | . . . Actions | -11 -10 -10 --------- Run | Scr Mat Min Total 584 | 68 460 56 Wait 35 | . 35 . Move 440 | 50 351 39 Hop . | . . . Pick Up 15 | 5 7 3 Fast Attach 7 | 6 1 . Attach 6 | . 2 4 Detach . | . . . Swap 2 | . 2 . Drop 3 | . 3 . Fire 76 | 7 59 10 Melee . | . . . Ram . | . . . Kick . | . . . Crush . | . . . Escape Stasis . | . . . Rewire . | . . . Trap . | . . . Miscellaneous . | . . . Route ------- -11/Scrapyard -10/Materials (discovered 2 exits: [*Mat] / [*Min]) -10/Mines History --------- Turn | Location | Event 18 | -11/Scrapyard | Discovered new exit (range 15) 81 | -11/Scrapyard | Entered Materials 300 | -10/Materials | Build established: Mutant 525 | -10/Materials | Discovered new exit (range 10) 657 | -10/Materials | Discovered new exit (range 15) 708 | -10/Materials | Entered Mines 720 | -10/Mines | Found a hidden stash of uninstalled traps 731 | -10/Mines | Assembled infested the area 736 | -10/Mines | Assisted by a Guerilla fighting off Assembled 768 | -10/Mines | Received a Rocket Launcher from a helpful Derelict 773 | -10/Mines | Core integrity fell below 50% 784 | -10/Mines | Core integrity fell below 20% 795 | -10/Mines | Destroyed by D-53 Grenadier with Mini Grenade Launcher Last Messages --------------- 00781_ System corrupted: Energy discharge (-27). 00781_ The unstable cave ceiling collapses. 00781_ K-01 Serf collects debris. 00781_ U-05 Engineer lays Concrete. 00782_ The unstable cave ceiling collapses. 00782_ U-05 Engineer builds a Wall. 00783_ U-05 Engineer lays Concrete. 00783_ K-01 Serf collects debris. 00783_ Mining Laser destroyed. 00784_ The unstable cave ceiling collapses. 00784_ U-05 Engineer builds a Wall. 00787_ The unstable cave ceiling collapses. 00788_ K-01 Serf collects debris. 00788_ D-53 Grenadier destroyed. 00788_ K-01 Serf destroyed. 00788_ Lgt. Treads destroyed. 00791_ The unstable cave ceiling collapses. 00792_ Lgt. Treads destroyed. 00793_ The unstable cave ceiling collapses. 00794_ U-05 Engineer lays Concrete. Map ----- +----------------------------------------------------+ | ?????????????????????????????????????????????????? | | ?????????????????????????????????????????????????? | | ?????????????????????????????????????????????????? | | ?????????????????????????????????????????????????? | | ?????????????????????????????????????????????????? | | ?????????????????????????????????????????????????? | | ?????????????????????????????????????????????????? | | ?????????????????????????????????????????????????? | | ?????????????????????????????????????????????????? | | ?????????????????????????????????????????????????? | | ?????????????????????????????????????????????????? | | ?????????????????????????????????????########????? | | ????????????????????????????????????## ## ##???? | | ????????????????????????????????????# #???? | | ?????????????????????###???????????## #???? | | ?????????????????????# ???????????# #???? | | ?????????????????????# ???????????# ##??? | | ?????????????????????# t???????????## #??? | | ??????????????????? ## #???????????# & & #??? | | ???????????????????? ##????????## &## ##??? | | ????????????????????? #???????## ### ##???? | | ?????????????????????? #??????## #?# #????? | | ??????????????????????? ####?### #?# #????? | | ????????????????# ????###] ### ##?# ###### | | ????????????????? ??# ##??# # | | ?????????????????#"# # @ # ##???# # | | ?????????????????#; # ##????# # | | ?????????????????## #?????# # | | ??????????????????## ##?????# # | | ???????????????????## < k ##??????# # | | ????????????????????### # # #??????# # | | ??????????????????? ##??????# # | | ???????????????? ##???????######## | | ???????????????? # ##???????????????? | | ??????????????? """ """ d ????????????????? | | ????????????????""" """ ### #???????????????? | | ?????????????????"" """ # u # #???????????????? | | ????????????????? ?? ##### ## ???????????????? | | ????????????????????""" ?# # %? ???????????????? | | ????????????????????""" ?### ##? ??????????????? | | ??????????????????????"????# ??? ??????????????? | | ???????????????????????????##??? ?????????????? | | ????????????????????????????????? ??????????????? | | ?????????????????????????????????????????????????? | | ?????????????????????????????????????????????????? | | ?????????????????????????????????????????????????? | | ?????????????????????????????????????????????????? | | ?????????????????????????????????????????????????? | | ?????????????????????????????????????????????????? | | ?????????????????????????????????????????????????? | +----------------------------------------------------+ Best States ------------- Heat Dissipation 25 Energy Generation 10 Energy Capacity 250 Matter Stores 300 Matter Capacity 300 Sight Range 16 Terrain Scan Density 10 Evasion (%) 42 Recoil Reduction 2 Item Schematics ----------------- None Robot Schematics ------------------ None Fabricated ------------ Nothing Alien Tech Used ----------------- None Achievements -------------- None Challenges ------------ None Game ------ Seed SniperSmallReactor Manual? 0 Play Time 00:06:00 Cumulative 268.7 hours Start 2019.11.14 @ 22:22:07 End 2019.11.14 @ 22:27:53 Sessions 1 Manual Loads 0 Difficulty Rogue Special Mode None Game No. 215 Rogue 215 Adventurer 0 Explorer 0 Win Type - Total 3 Types 3/0/0/0/0/0/0 Lore% 74 Gallery% 78 Achievement% 55 Wizard Run 0 Options --------- ASCII 0 Keyboard 0 Movement Mouse Keybinds 1 Fullscreen 2 Font 24/Smallcaps Map View 76x50 Tactical HUD 1 Map Filters NONE Filters NONE Steam 1 RUN: 91053d91-e074-4c82-8616-ad1afbf4cae6